bitfinex/quotes_ETHUSD_20250525
["timestamp","ask_amount","ask_price","bid_price","bid_amount"]
[1748183396803,0.043,2509.9,2509.8,27.33594364]
[1748183398705,0.043,2509.9,2509.8,27.87707486]
[1748183399402,0.043,2509.9,2509.8,33.95707486]
[1748183400161,0.043,2509.9,2509.8,34.43337999]
[1748183405699,0.043,2509.9,2509.8,34.43037999]
[1748183408391,0.043,2509.9,2509.8,25.88924877]
[1748183408800,0.043,2509.9,2509.8,25.41294364]
[1748183409095,0.043,2509.9,2509.8,21.43894364]
[1748183409294,0.8232,2509.9,2509.8,13.13484364]
[1748183410300,0.8232,2509.9,2509.8,12.754]
[1748183410501,0.8232,2509.9,2509.8,20.754]
[1748183411814,0.8232,2509.9,2509.8,24.728]
[1748183412122,0.8232,2509.9,2509.8,12.754]
[1748183412300,0.8232,2509.9,2509.8,16.728]
[1748183412497,0.8232,2509.9,2509.8,8.586]
[1748183412709,0.8232,2509.9,2509.8,12.754]
[1748183413114,0.8232,2509.9,2509.8,8.586]
[1748183413308,0.8232,2509.9,2509.1,0.47630513]
[1748183413629,0.8232,2509.9,2509.5,8.584]
[1748183414421,1.23003003,2509.9,2509.5,8.584]
[1748183414733,0.7802,2509.8,2509.5,8.584]
[1748183415284,0.7802,2509.8,2509.6,4.168]
[1748183427722,0.88280888,2509.7,2509.6,4.168]
[1748183427963,0.833,2509.7,2509.6,4.168]
[1748183428650,0.833,2509.7,2509.5,8.584]
[1748183428867,0.833,2509.7,2509.6,4.169]
[1748183430174,0.876,2509.9,2509.6,4.169]
[1748183431236,0.876,2509.9,2509.5,8.584]
[1748183431534,0.876,2509.9,2509.6,8.144]
[1748183442184,0.876,2509.9,2509.6,9.8168]
[1748183443004,0.876,2509.9,2509.6,8.144]
[1748183444204,0.876,2509.9,2509.6,4.169]
[1748183444378,0.876,2509.9,2509.6,8.144]
[1748183448503,0.876,2509.9,2509.7,4.165]
[1748183452938,0.876,2509.9,2509.5,8.584]
[1748183453439,0.876,2509.9,2509.6,8.14]
[1748183454132,0.876,2509.9,2509.6,4.165]
[1748183454336,0.876,2509.9,2509.6,8.14]
[1748183454839,0.876,2509.9,2509.6,9.8124]
[1748183455038,0.043,2509.9,2509.6,9.8124]
[1748183458210,0.043,2509.9,2509.6,8.14]
[1748183458613,0.831,2509.8,2509.6,8.14]
[1748183461222,0.831,2509.8,2509.7,8.587]
[1748183463957,0.043,2509.9,2509.7,8.587]
[1748183464675,0.043,2509.9,2509.8,0.3121]
[1748183464867,0.043,2509.9,2509.8,1.70391]
[1748183465162,0.043,2509.9,2509.8,2.01601]
[1748183465534,0.043,2509.9,2509.8,2.3972772]
[1748183466173,0.043,2509.9,2509.8,10.3972772]
[1748183469939,0.043,2509.9,2509.8,10.9472772]
[1748183470942,0.043,2509.9,2509.8,14.9222772]
[1748183471162,0.043,2509.9,2509.8,18.2211772]
[1748183472570,0.043,2509.9,2509.8,17.83991]
[1748183475974,0.043,2509.9,2509.8,18.15201]
[1748183478345,0.043,2509.9,2509.8,10.01601]
[1748183478575,0.043,2509.9,2509.8,18.15001]
[1748183482048,0.043,2509.9,2509.8,18.70001]
[1748183483076,0.043,2509.9,2509.8,10.01601]
[1748183483254,0.043,2509.9,2509.8,18.15001]
[1748183483882,0.043,2509.9,2509.8,10.01601]
[1748183484083,0.043,2509.9,2509.8,13.86391]
[1748183484275,0.043,2509.9,2509.8,17.83791]
[1748183492901,0.043,2509.9,2509.8,18.21872085]
[1748183493478,0.043,2509.9,2509.8,18.53082085]
[1748183494174,0.043,2509.9,2509.8,18.21872085]
[1748183494972,0.043,2509.9,2509.8,10.21872085]
[1748183497495,0.043,2509.9,2509.8,10.53082085]
[1748183497702,0.043,2509.9,2509.8,11.08082085]
[1748183498560,0.043,2509.9,2509.8,10.53082085]
[1748183502308,0.043,2509.9,2509.8,6.55682085]
[1748183502470,0.043,2509.9,2509.8,2.39682085]
[1748183502670,0.043,2509.9,2509.8,10.21572085]
[1748183504407,0.043,2509.9,2509.8,10.52782085]
[1748183509111,0.043,2509.9,2509.8,6.55382085]
[1748183509312,0.043,2509.9,2509.8,10.52782085]
[1748183509512,0.043,2509.9,2509.8,2.08472085]
[1748183509710,0.8129,2509.9,2509.8,4.53781085]
[1748183510111,0.8129,2509.9,2509.8,8.131]
[1748183512409,0.8129,2509.9,2509.8,4.157]
[1748183512817,0.8129,2509.9,2509.8,8.131]
[1748183513610,0.8129,2509.9,2509.8,4.157]
[1748183513775,0.8129,2509.9,2509.8,8.131]
[1748183515427,0.043,2509.9,2509.8,8.131]
[1748183517732,0.043,2509.9,2509.8,4.157]
[1748183517941,0.8535,2509.9,2509.8,4.157]
[1748183522335,0.043,2509.9,2509.8,4.157]
[1748183522533,0.043,2509.9,2509.8,5.4314]
[1748183530377,0.043,2509.9,2509.8,6.2935]
[1748183531251,0.043,2509.9,2509.8,14.2935]
[1748183531429,0.043,2509.9,2509.8,14.67411719]
[1748183533354,0.043,2509.9,2509.8,15.15042232]
[1748183534836,0.043,2509.9,2509.8,14.67411719]
[1748183535140,0.043,2509.9,2509.8,20.75411719]
[1748183541278,0.043,2509.9,2509.8,16.59711719]
[1748183541446,0.043,2509.9,2509.8,15.86301719]
[1748183542331,0.043,2509.9,2509.8,11.5084]
[1748183542536,0.043,2509.9,2509.8,15.4824]
[1748183543048,0.043,2509.9,2509.8,11.5084]
[1748183543251,0.043,2509.9,2509.8,14.208]
[1748183543646,0.043,2509.9,2509.8,6.08]
[1748183543971,0.8574,2509.9,2509.8,14.208]
[1748183546775,0.8574,2509.9,2509.8,8.128]
[1748183548676,0.043,2509.9,2509.8,8.128]
[1748183548868,0.043,2509.9,2509.8,9.7995]
[1748183549259,0.043,2509.9,2509.8,10.34063122]
[1748183550567,0.043,2509.9,2509.8,10.65273122]
[1748183550765,0.043,2509.9,2509.8,11.20273122]
[1748183551481,0.043,2509.9,2509.8,11.58292232]
[1748183552680,0.043,2509.9,2509.8,17.66292232]
[1748183553083,0.043,2509.9,2509.8,17.1217911]
[1748183559801,0.043,2509.9,2509.8,17.66292232]
[1748183560664,0.043,2509.9,2509.8,25.66292232]
[1748183564107,0.043,2509.9,2509.8,25.1207911]
[1748183564629,0.043,2509.9,2509.8,19.0407911]
[1748183579969,0.043,2509.9,2509.8,19.51709623]
[1748183580436,0.043,2509.9,2509.8,19.20499623]
[1748183582549,0.043,2509.9,2509.8,27.78899623]
[1748183588561,0.043,2509.9,2509.8,27.3126911]
[1748183590354,0.043,2509.9,2509.8,23.3386911]
[1748183590556,0.043,2509.9,2509.8,27.3126911]
[1748183592057,0.043,2509.9,2509.8,27.78952442]
[1748183592264,0.043,2509.9,2509.8,15.26552442]
[1748183592464,0.8461,2509.9,2509.8,17.56802442]
[1748183593766,0.8461,2509.9,2509.8,17.0911911]
[1748183595068,0.8461,2509.9,2509.8,8.9641911]
[1748183595247,0.8461,2509.9,2509.8,17.0901911]
[1748183596371,0.8461,2509.9,2509.8,25.0901911]
[1748183597730,0.043,2509.9,2509.8,27.59921021]
[1748183597935,0.043,2509.9,2509.8,28.14034143]
[1748183599771,0.043,2509.9,2509.8,27.59921021]
[1748183610993,0.043,2509.9,2509.8,28.14921021]
[1748183618072,0.043,2509.9,2509.8,29.54500425]
[1748183618400,0.043,2509.9,2509.8,30.02183757]
[1748183620107,0.043,2509.9,2509.8,29.54500425]
[1748183620467,0.043,2509.9,2509.8,20.87787303]
[1748183620666,0.043,2509.9,2509.8,28.45931021]
[1748183622966,0.043,2509.9,2509.8,28.93554445]
[1748183623400,0.043,2509.9,2509.8,26.89154445]
[1748183623604,0.043,2509.9,2509.8,34.70344445]
[1748183624405,0.043,2509.9,2509.8,26.57944445]
[1748183624566,0.043,2509.9,2509.8,34.70344445]
[1748183625711,0.043,2509.9,2509.8,26.57944445]
[1748183625918,0.043,2509.9,2509.8,22.17944445]
[1748183626075,0.043,2509.9,2509.8,26.15344445]
[1748183626417,0.043,2509.9,2509.8,16.09944445]
[1748183626726,0.8018,2509.9,2509.8,13.59042534]
[1748183627419,0.8018,2509.9,2509.8,12.734]
[1748183629632,0.043,2509.9,2509.8,12.734]
[1748183630480,0.043,2509.9,2509.8,14.4048]
[1748183630923,0.043,2509.9,2509.8,14.78544572]
[1748183637296,0.043,2509.9,2509.8,22.4048]
[1748183643722,0.043,2509.9,2509.8,24.708]
[1748183645021,0.043,2509.9,2509.8,16.584]
[1748183645218,0.043,2509.9,2509.8,24.708]
[1748183649762,0.043,2509.9,2509.8,25.08858604]
[1748183656199,0.043,2509.9,2509.8,13.11458604]
[1748183656486,0.043,2509.9,2509.8,17.08858604]
[1748183656638,0.043,2509.9,2509.8,18.79744464]
[1748183659176,0.043,2509.9,2509.8,19.65954464]
[1748183666167,0.043,2509.9,2509.8,23.68554464]
[1748183666396,0.043,2509.9,2509.8,27.65954464]
[1748183667705,0.043,2509.9,2509.8,33.73954464]
[1748183671920,0.043,2509.9,2509.8,34.28067586]
[1748183672415,0.043,2509.9,2509.8,28.20067586]
[1748183677495,0.043,2509.9,2509.8,28.83552738]
[1748183679704,0.8054,2510.7,2510.1,0.55]
[1748183679934,0.05,2510.9,2510.4,0.55]
[1748183680236,0.05,2510.9,2510.6,8.55]
[1748183680824,0.05,2510.9,2510.8,0.55]
[1748183681364,0.05,2510.9,2510.8,0.8621]
[1748183681567,0.05,2510.9,2510.8,1.7863686]
[1748183682316,0.05,2510.9,2510.8,10.72476923]
[1748183683218,0.05,2510.9,2510.8,12.1232212]
[1748183683842,0.05,2510.9,2510.8,11.58065838]
[1748183685232,0.05,2510.9,2510.8,19.15752716]
[1748183685853,0.05,2510.9,2510.8,18.68222405]
[1748183687448,0.05,2510.9,2510.8,24.76222405]
[1748183698767,0.05,2510.9,2510.8,29.36922405]
[1748183698933,0.05,2510.9,2510.8,28.10885464]
[1748183699138,0.8793,2510.9,2510.8,23.15658604]
[1748183699333,0.8793,2510.9,2510.8,19.18458604]
[1748183699558,0.8793,2510.9,2510.8,13.10458604]
[1748183699736,0.8793,2510.9,2510.8,25.07658604]
[1748183700060,0.8793,2510.9,2510.8,17.07658604]
[1748183700369,0.8793,2510.9,2510.8,4.144]
[1748183701473,0.8793,2510.9,2510.8,12.144]
[1748183702767,0.8793,2510.9,2510.8,16.116]
[1748183703383,0.8793,2510.9,2510.8,8.116]
[1748183709588,0.8793,2510.9,2510.5,8.0]
[1748183709791,0.8793,2510.9,2510.6,8.118]
[1748183709960,0.8793,2510.9,2510.7,4.143]
[1748183710156,0.8793,2510.9,2510.7,8.116]
[1748183711660,0.8793,2510.9,2510.8,3.973]
[1748183717197,0.8793,2510.9,2510.5,8.0]
[1748183717391,0.8793,2510.9,2510.6,8.116]
[1748183718164,0.8793,2510.9,2510.6,4.143]
[1748183718390,0.8793,2510.9,2510.6,8.116]
[1748183719082,0.8793,2510.9,2510.4,8.58]
[1748183719283,0.8793,2510.9,2510.5,4.143]
[1748183720265,0.8793,2510.9,2510.4,8.58]
[1748183720467,0.8793,2510.9,2510.5,4.143]
[1748183726043,0.8793,2510.9,2510.4,8.58]
[1748183726247,0.8793,2510.9,2510.5,8.118]
[1748183726729,0.8793,2510.9,2510.4,8.58]
[1748183726934,0.8793,2510.9,2510.5,4.144]
[1748183736259,0.8793,2510.9,2510.6,4.35455809]
[1748183737419,0.8793,2510.9,2510.8,0.47530311]
[1748183739564,0.8793,2510.9,2510.8,0.8558612]
[1748183741540,0.05,2510.9,2510.8,0.8558612]
[1748183741843,0.05,2510.9,2510.8,0.38055809]
[1748183744586,0.05,2510.9,2510.8,1.57219905]
[1748183746990,0.05,2510.9,2510.8,2.12219905]
[1748183747182,0.05,2510.9,2510.8,1.57219905]
[1748183749493,0.05,2510.9,2510.8,9.68819905]
[1748183751791,0.05,2510.9,2510.8,0.87949905]
[1748183752118,0.05,2510.9,2510.8,8.49655809]
[1748183752657,0.8048,2510.9,2510.8,4.52355809]
[1748183754165,0.8545926,2510.9,2510.8,4.143]
[1748183754366,0.8048,2510.9,2510.8,4.143]
[1748183754595,1.28258,2510.9,2510.8,4.143]
[1748183755264,0.55,2510.6,2509.8,0.63329567]
[1748183755460,9.3048,2510.4,2509.8,0.63329567]
[1748183755789,0.7548,2510.0,2508.7,5.56012882]
[1748183756011,0.7548,2509.6,2508.7,1.58712882]
[1748183756209,0.80462985,2509.5,2508.7,1.58712882]
[1748183756526,0.7548,2509.3,2508.2,1.26681049]
[1748183756730,0.7548,2509.1,2508.2,1.26681049]
[1748183757499,1.14257066,2509.1,2508.3,12.729]
[1748183758917,0.7548,2509.1,2508.3,14.8069]
[1748183759332,0.7548,2509.1,2508.3,8.585]
[1748183759505,0.7548,2508.9,2508.4,4.144]
[1748183759700,0.38955927,2509.1,2508.4,4.144]
[1748183760033,0.7548,2508.9,2508.4,4.144]
[1748183760204,0.04983312,2508.8,2508.4,4.144]
[1748183760406,0.7548,2508.7,2508.4,4.144]
[1748183761691,0.8181,2509.6,2508.4,4.144]
[1748183761894,0.8181,2509.4,2508.4,4.144]
[1748183762094,0.8181,2509.2,2508.4,4.144]
[1748183763910,0.04982494,2509.1,2508.4,4.144]
[1748183764792,0.04982494,2509.1,2508.5,4.145]
[1748183764793,0.8181,2509.0,2508.5,4.145]
[1748183764992,0.8181,2508.8,2508.5,4.145]
[1748183765830,1.21044247,2508.8,2508.5,4.145]
[1748183766338,0.39234247,2508.8,2508.5,4.145]
[1748183766638,0.8103,2508.7,2508.5,4.145]
[1748183769641,0.8103,2508.7,2508.6,4.146]
[1748183769843,0.8601356,2508.7,2508.6,4.146]
[1748183770139,0.8103,2508.7,2508.6,4.146]
[1748183770341,0.7591,2508.3,2508.1,0.05]
[1748183770501,0.7591,2508.0,2507.7,4.146]
[1748183770701,1.08535058,2508.2,2507.7,4.146]
[1748183770702,0.7591,2507.8,2507.7,4.146]
[1748183770951,0.55,2507.5,2507.4,4.146]
[1748183771156,0.7591,2507.5,2507.4,4.146]
[1748183774703,1.15854119,2507.5,2507.4,4.146]
[1748183776609,0.7581,2507.2,2507.1,0.05]
[1748183776906,0.7581,2507.2,2507.1,4.267]
[1748183777511,1.3081,2507.2,2507.1,0.05]
[1748183777666,0.55,2506.9,2506.6,4.217]
[1748183777871,0.80797491,2506.8,2506.6,4.217]
[1748183778066,0.80797491,2506.8,2506.1,4.268]
[1748183778386,0.7581,2506.8,2506.1,4.268]
[1748183780166,0.04987823,2506.7,2506.1,4.268]
[1748183780369,0.55,2506.7,2506.2,4.218]
[1748183780606,0.55,2506.7,2506.3,4.218]
[1748183781013,0.8343795,2506.6,2506.3,4.218]
[1748183782008,0.7855,2506.4,2506.3,4.218]
[1748183787574,0.7964,2506.9,2506.3,4.219]
[1748183789803,0.7964,2507.2,2506.4,0.783]
[1748183790321,10.25,2507.4,2506.4,8.783]
[1748183790486,1.19584119,2507.5,2506.4,8.783]
[1748183794035,0.7964,2507.5,2506.4,8.783]
[1748183794436,0.7964,2507.2,2506.5,4.219]
[1748183794606,8.0,2507.0,2506.5,4.219]
[1748183794805,0.55,2506.8,2506.5,4.219]
[1748183795133,0.55,2506.6,2506.1,0.05]
[1748183795334,0.7964,2506.7,2506.1,0.05]
[1748183795490,0.84628304,2506.7,2506.1,0.05]
[1748183795966,0.7964,2506.7,2506.1,0.05]
[1748183797343,0.04988265,2506.6,2506.2,4.22]
[1748183798313,0.5998797,2506.6,2506.2,4.22]
[1748183798515,0.55,2506.6,2506.2,4.22]
[1748183799656,0.773,2506.5,2506.1,0.05]
[1748183799817,0.55,2506.2,2506.1,0.05]
[1748183800150,1.3728914,2506.2,2506.1,0.05]
[1748183800450,1.3728914,2506.2,2505.1,0.8427]
[1748183800451,0.8149,2506.1,2505.4,4.22]
[1748183800657,0.8149,2505.7,2505.4,4.22]
[1748183800810,0.86479736,2505.7,2505.4,4.22]
[1748183801007,0.8149,2505.7,2505.4,4.22]
[1748183802539,0.8149,2506.0,2505.4,4.22]
[1748183803113,0.86479077,2506.0,2505.4,4.22]
[1748183803819,0.39792496,2506.2,2505.4,4.22]
[1748183804018,0.8149,2506.3,2505.4,4.22]
[1748183804558,0.86478502,2506.6,2505.6,0.7503]
[1748183805710,1.99629145,2506.5,2505.6,0.7503]
[1748183805915,2.04617268,2506.5,2505.6,0.7503]
[1748183807153,1.99629145,2506.5,2505.7,4.295]
[1748183807331,2.04617267,2506.5,2505.7,4.295]
[1748183807531,0.28610727,2506.4,2505.8,8.601]
[1748183807928,1.99629145,2506.5,2505.8,8.601]
[1748183808353,1.99629145,2506.5,2505.8,12.583]
[1748183809623,0.7948,2506.9,2505.8,12.583]
[1748183810240,0.7948,2506.9,2505.9,0.0924]
[1748183810561,0.84467705,2506.9,2505.9,0.0924]
[1748183810762,0.8844677,2506.8,2505.9,0.0924]
[1748183810988,0.04987707,2506.7,2506.0,4.295]
[1748183813225,0.7911,2506.6,2506.1,4.295]
[1748183813436,0.04987968,2506.5,2506.1,4.295]
[1748183813664,0.84097968,2506.6,2506.1,4.295]
[1748183814859,0.7911,2506.6,2506.1,4.295]
[1748183816650,0.04987736,2506.5,2506.2,4.295]
[1748183817182,0.84097879,2506.6,2506.2,4.295]
[1748183818997,0.84097879,2506.6,2505.8,8.601]
[1748183819174,0.84097879,2506.6,2506.3,4.295]
[1748183820688,0.7911,2506.6,2506.3,4.295]
[1748183821791,0.7911,2506.6,2506.4,4.295]
[1748183822894,0.7911,2506.6,2505.8,8.6934]
[1748183823096,0.8102,2506.4,2505.9,4.295]
[1748183823241,1.16102,2506.3,2505.9,4.295]
[1748183823448,0.04988663,2506.2,2505.9,4.295]
[1748183823648,0.04988663,2506.2,2505.8,8.601]
[1748183823847,0.8102,2506.1,2505.9,4.295]
[1748183824344,0.8102,2506.1,2506.0,4.295]
[1748183824562,0.8102,2506.1,2505.8,8.601]
[1748183824801,1.4100893,2506.1,2506.0,4.295]
[1748183824961,1.65635843,2506.1,2506.0,4.295]
[1748183826961,1.10635843,2506.1,2506.0,4.295]
[1748183827166,1.65635843,2506.1,2506.0,4.295]
[1748183827382,1.65635843,2506.1,2505.8,8.601]
[1748183827584,0.04988931,2506.0,2505.9,4.295]
[1748183827782,0.20967208,2506.0,2505.9,4.295]
[1748183828008,0.20967208,2506.0,2505.8,8.601]
[1748183828312,0.20967208,2506.0,2505.9,4.295]
[1748183828830,0.20967208,2506.0,2505.6,4.295]
[1748183828831,0.55,2505.7,2505.6,4.295]
[1748183829133,0.55,2505.5,2505.3,4.295]
[1748183829429,19.0736,2505.4,2505.3,4.295]
[1748183829575,19.6236,2505.4,2505.3,4.295]
[1748183830413,19.0736,2505.4,2505.3,4.295]
[1748183830572,19.6236,2505.4,2505.3,4.295]
[1748183830773,21.58596,2505.4,2505.3,4.295]
[1748183831404,21.58596,2505.4,2505.1,0.05]
[1748183831583,21.58596,2505.4,2505.3,4.295]
[1748183831787,21.03596,2505.4,2505.3,4.295]
[1748183833942,8.55,2505.3,2505.1,0.05]
[1748183834107,3.681636,2505.2,2505.1,0.05]
[1748183834311,0.8054,2505.2,2505.1,4.395]
[1748183835433,8.0,2505.3,2505.1,4.395]
[1748183836751,11.0463,2505.4,2505.1,0.05]
[1748183836930,10.25,2505.4,2505.2,4.346]
[1748183837438,11.275,2505.4,2505.2,4.346]
[1748183837613,10.25,2505.4,2505.2,4.346]
[1748183840926,1.73366,2505.7,2505.2,4.346]
[1748183841310,0.93736,2505.7,2505.2,4.346]
[1748183843146,0.98725708,2505.7,2505.2,4.346]
[1748183843648,0.8262,2505.6,2505.2,4.346]
[1748183844341,0.8262,2505.6,2505.3,4.346]
[1748183846017,0.04989763,2505.5,2505.3,4.346]
[1748183846222,0.87609763,2505.6,2505.3,4.346]
[1748183846707,0.8262,2505.6,2505.4,4.346]
[1748183849019,8.93736,2505.7,2505.4,4.346]
[1748183849219,1.367166,2505.6,2505.4,4.346]
[1748183850015,1.367166,2505.6,2505.4,4.4384]
[1748183850217,8.0,2505.9,2505.4,4.4384]
[1748183851648,18.25,2505.9,2505.4,4.346]
[1748183851853,0.8318,2505.6,2505.4,4.346]
[1748183854470,18.25,2505.9,2505.4,4.346]
[1748183854471,0.55,2505.8,2505.4,4.346]
[1748183854773,19.0818,2505.9,2505.4,4.346]
[1748183854924,2.30648,2505.8,2505.4,4.346]
[1748183855218,2.35637539,2505.8,2505.4,4.346]
[1748183855724,0.55,2505.7,2505.4,4.346]
[1748183856125,2.30648,2505.8,2505.4,4.346]
[1748183856564,0.04989741,2505.7,2505.4,4.346]
[1748183856753,2.19371515,2505.7,2505.5,4.346]
[1748183856948,0.7502,2505.6,2505.1,0.05]
[1748183857157,0.7502,2505.6,2505.2,4.346]
[1748183857383,0.28940177,2505.5,2505.2,4.346]
[1748183859264,0.28940177,2505.5,2505.1,0.05]
[1748183859497,0.04990293,2505.4,2505.3,4.346]
[1748183859699,0.28940177,2505.5,2505.3,4.346]
[1748183862646,0.28940177,2505.5,2505.1,0.05]
[1748183862846,0.04990293,2505.4,2505.2,4.346]
[1748183863790,0.33930241,2505.5,2505.2,4.346]
[1748183864692,0.28940177,2505.5,2505.2,4.346]
[1748183866169,0.28940177,2505.5,2505.3,0.0924]
[1748183867296,9.3551,2505.3,2505.2,4.346]
[1748183867472,10.77784,2505.3,2505.2,4.346]
[1748183869499,0.55,2505.2,2505.1,0.05]
[1748183869659,0.55,2505.2,2505.1,4.405]
[1748183871663,10.941,2505.2,2505.1,4.405]
[1748183871987,8.55,2505.2,2505.1,4.405]
[1748183872186,9.627784,2505.2,2505.1,4.405]
[1748183874011,13.610784,2505.2,2505.1,0.05]
[1748183874214,14.383784,2505.2,2505.1,4.406]
[1748183875780,24.633784,2505.2,2505.1,4.406]
[1748183877828,10.941,2505.1,2505.0,0.69914179]
[1748183877980,21.9882,2505.1,2505.0,0.69914179]
[1748183878330,25.2536724,2505.1,2505.0,0.69914179]
[1748183879203,6.574,2504.9,2504.1,0.05]
[1748183879396,0.7972,2504.7,2504.4,4.356]
[1748183879601,0.7972,2504.9,2504.4,4.356]
[1748183879896,0.55,2504.8,2504.4,4.356]
[1748183880100,13.98664493,2505.1,2504.5,0.7593]
[1748183880294,10.72117253,2505.1,2504.5,0.7593]
[1748183880843,1.3472,2505.0,2504.6,4.356]
[1748183880997,5.3312,2505.0,2504.6,4.356]
[1748183881438,0.55,2504.8,2504.6,4.356]
[1748183882540,8.59991374,2504.7,2504.1,0.05]
[1748183882710,0.55,2504.3,2504.1,0.05]
[1748183883049,10.25,2504.2,2504.1,0.05]
[1748183883239,11.984,2504.5,2504.2,4.357]
[1748183883441,0.55,2504.4,2504.1,0.05]
[1748183883674,0.55,2504.4,2504.2,4.357]
[1748183884214,0.55,2504.4,2504.1,0.05]
[1748183884543,1.2534,2504.3,2504.2,4.357]
[1748183885841,11.1355,2504.6,2504.2,4.357]
[1748183886057,11.1355,2504.6,2504.3,0.7593]
[1748183886958,11.1355,2504.6,2504.4,4.357]
[1748183887485,0.39530352,2504.6,2504.4,4.357]
[1748183887964,0.04991236,2504.9,2504.4,4.357]
[1748183889766,0.04991236,2504.9,2504.3,0.7593]
[1748183889927,1.3472,2504.8,2504.1,0.05]
[1748183890128,1.3472,2504.8,2504.2,4.357]
[1748183890129,1.7468685,2504.8,2504.2,4.357]
[1748183890331,0.93971124,2504.7,2504.2,4.357]
[1748183892042,0.93971124,2504.7,2504.3,0.7593]
[1748183893448,0.93971124,2504.7,2504.1,0.05]
[1748183893664,0.93971124,2504.7,2504.4,4.357]
[1748183893831,0.21864934,2504.6,2504.4,4.357]
[1748183895027,0.21864934,2504.6,2504.4,5.1163]
[1748183895456,0.93971124,2504.7,2504.4,5.1163]
[1748183895631,0.3996685,2504.8,2504.4,5.1163]
[1748183895837,10.25,2505.0,2504.4,5.1163]
[1748183898567,10.25,2505.0,2504.1,0.05]
[1748183898568,9.3151,2504.9,2504.1,0.05]
[1748183898774,0.55,2504.1,2503.7,0.62791708]
[1748183898934,0.55,2503.8,2503.7,0.62791708]
[1748183899133,0.59993573,2503.8,2503.7,0.62791708]
[1748183899376,1.86813972,2503.8,2503.7,0.62791708]
[1748183899676,1.86813972,2503.8,2503.4,4.409]
[1748183899856,1.3151,2503.8,2503.4,4.409]
[1748183900060,1.3151,2503.8,2503.5,4.409]
[1748183902369,0.55,2503.6,2503.3,4.409]
[1748183902974,0.55,2503.8,2503.3,4.409]
[1748183903685,0.55,2503.8,2503.4,4.409]
[1748183904542,0.55,2503.8,2503.1,0.02304792]
[1748183904743,0.55,2503.8,2503.2,4.41]
[1748183905955,0.797,2503.9,2503.2,4.41]
[1748183906779,1.20034506,2503.9,2503.2,4.41]
[1748183907147,0.92003451,2503.8,2503.2,4.41]
[1748183908067,0.92003451,2503.8,2503.3,4.7776]
[1748183908272,0.40334506,2503.9,2503.3,4.7776]
[1748183908471,0.7615,2504.1,2503.3,4.7776]
[1748183909484,0.38882089,2504.1,2503.4,8.7916]
[1748183909642,1.99275556,2504.5,2503.5,0.7916]
[1748183910684,1.99275556,2505.1,2503.5,0.7916]
[1748183910887,0.27719556,2505.0,2503.7,0.7916]
[1748183911062,0.27719556,2505.0,2504.0,0.7916]
[1748183911267,0.27719556,2505.0,2504.2,0.7916]
[1748183911676,0.04990966,2504.9,2504.3,4.623]
[1748183912089,0.55,2504.9,2504.3,4.623]
[1748183912280,0.55,2504.9,2504.2,0.7916]
[1748183912457,0.82911665,2504.8,2504.3,4.623]
[1748183912658,1.23695205,2504.8,2504.3,4.623]
[1748183912866,1.23695205,2504.8,2503.9,4.7776]
[1748183912867,0.55,2504.7,2504.4,4.623]
[1748183913067,0.55,2504.7,2504.5,4.623]
[1748183913258,0.55,2504.7,2504.6,4.623]
[1748183915094,10.8,2504.7,2504.6,4.623]
[1748183915394,9.74870354,2504.7,2504.6,4.623]
[1748183915598,0.55,2504.5,2503.9,8.608]
[1748183915899,0.55,2504.5,2504.0,4.623]
[1748183916803,0.55,2504.5,2504.1,4.623]
[1748183917296,0.55,2504.5,2503.9,8.608]
[1748183917498,0.55,2504.5,2504.2,4.623]
[1748183918822,0.55,2504.5,2503.9,8.608]
[1748183919106,0.55,2504.5,2504.0,4.623]
[1748183919766,0.8252,2504.6,2504.0,4.623]
[1748183920763,0.21604541,2504.6,2504.0,4.623]
[1748183921669,0.21604541,2504.6,2503.9,8.608]
[1748183921906,0.21604541,2504.6,2504.0,8.608]
[1748183922981,0.21604541,2504.6,2503.9,8.608]
[1748183923308,0.21604541,2504.6,2504.0,8.608]
[1748183925314,8.21604541,2504.6,2504.0,8.608]
[1748183925494,8.21604541,2504.6,2503.9,8.608]
[1748183925690,8.21604541,2504.6,2504.0,8.607]
[1748183927011,8.0,2504.6,2504.0,8.607]
[1748183927185,10.25,2504.7,2504.0,8.607]
[1748183929293,8.8098,2505.5,2504.0,8.607]
[1748183929491,0.8098,2505.5,2504.0,8.607]
[1748183929709,0.8098,2505.5,2504.1,1.80758]
[1748183929710,1.30525556,2505.4,2504.1,1.80758]
[1748183930099,1.70176256,2505.4,2504.1,1.80758]
[1748183930299,9.70176256,2505.4,2504.1,1.80758]
[1748183930499,1.70176256,2505.4,2504.1,9.80758]
[1748183930714,1.70176256,2505.4,2504.2,1.05077068]
[1748183933841,1.30525556,2505.4,2504.2,1.05077068]
[1748183934415,1.70299618,2505.4,2504.2,1.05077068]